Cogmind - Beta 16 @@@ ROGUE MODE // 2026.01.02 @ 05:05:53 Player: C4PT41N Result: Destroyed by Y-45 Defender with Heavy Assault Rifle Performance ------------- Evolutions (2) 1000 Regions Visited (3) 600 Robots Destroyed (60) 300 Value Destroyed (1690) 1690 Prototype IDs (5) 100 Alien Tech Used (0) 0 Bonus (0) 0 TOTAL SCORE: 3690 Bonus ------- None Cogmind --------- Core Integrity 0/550 Matter 295/300 Energy 269/275 System Corruption 0% Temperature Cool (12) Movement Walking (120) Location -8/Materials Parts ------- > --- POWER (1) -------- Deuterium Engine > --- PROPULSION (3) --- Aluminum Leg Aluminum Leg Carbon-fiber Leg > --- UTILITY (5) ------ Advanced Visual Processing Unit Core Analyzer Improved Power Shielding Improved Light Armor Plating > --- WEAPON (2) ------- (None) > --- INVENTORY (5) ---- Heat Sink Transport Network Coupler Improved Light Armor Plating Improved Light Armor Plating Peak State ------------ > --- POWER ------------ Deuterium Engine > --- PROPULSION ------- Carbon-fiber Leg Carbon-fiber Leg > --- UTILITY ---------- Advanced Visual Processing Unit Core Analyzer Improved Light Armor Plating Improved Light Armor Plating Improved Light Armor Plating > --- WEAPON ----------- Greatsword > --- INVENTORY -------- Heat Sink Transport Network Coupler Improved Power Shielding Improved Light Armor Plating Improved Light Armor Plating [Rating: 34] Favorites ----------- Power Ion Engine Engine Ion Engine Propulsion Aluminum Leg Leg Aluminum Leg Wheel Armored Huge Wheel Flight Unit Improved VTOL Module Utility Light Armor Plating Device Heat Sink Storage Small Storage Unit Processor Advanced Visual Processing Unit Hackware System Shield Protection Light Armor Plating Weapon Beam Cannon Energy Gun Small Laser Energy Cannon Beam Cannon Ballistic Gun Light Assault Rifle Ballistic Cannon Flak Cannon Special Weapon Mining Laser Slashing Weapon Katana Build | -11 -10 -9 -8 ------- Run | Yrd Mat Mat Mat Slots Evolved 4 | . . 2 2 Power . | . . . . Propulsion 1 | . . . 1 Utility 3 | . . 2 1 Weapon . | . . . . Parts Attached 65 | 7 7 24 27 Power 9 | 1 2 4 2 Engine 9 | 1 2 4 2 Core . | . . . . Reactor . | . . . . Propulsion 16 | 2 1 5 8 Treads . | . . . . Leg 14 | 2 1 5 6 Wheel 1 | . . . 1 Hover . | . . . . Flight 1 | . . . 1 Utility 26 | 1 2 11 12 Device 7 | . . 4 3 Storage 2 | 1 . . 1 Processor 3 | . . 1 2 Hackware 2 | . . 2 . Protection 12 | . 2 4 6 Artifact . | . . . . Weapon 14 | 3 2 4 5 Energy Gun 2 | 1 . 1 . Energy Cannon 3 | . 2 1 . Ballistic Gun 3 | 2 . 1 . Ballistic Cannon 2 | . . . 2 Launcher . | . . . . Special Weapon 2 | . . 1 1 Impact Weapon . | . . . . Slashing Weapon 2 | . . . 2 Piercing Weapon . | . . . . Special Melee Weapon . | . . . . Unidentified Prototypes 5 | . . 4 1 Parts Lost 19 | . 1 4 14 Power 2 | . 1 . 1 Propulsion 7 | . . 2 5 Utility 7 | . . 2 5 Weapon 3 | . . . 3 Highest Loss Streak 6 | . 1 2 6 To Critical Strikes . | . . . . Average Backups 5 | 1 7 6 4 Power . | . . . . Propulsion . | 1 . . . Utility 2 | . 2 2 3 Weapon 2 | . 4 2 . Tool/Special . | . . . . Unused Backups 17 | . 5 9 3 Power . | . . . . Propulsion 3 | . 3 . . Utility 7 | . . 4 3 Weapon 6 | . 2 4 . Tool/Special 1 | . . 1 . Average Slot Usage (%) 94 | . 99 98 83 Engine 10 | . 13 10 8 Leg 22 | . 27 21 17 Device 10 | . . 16 10 Storage 7 | . 14 6 1 Processor 5 | . . 6 10 Protection 15 | . 13 14 20 Energy Cannon 17 | . 23 21 5 Ballistic Gun 1 | . 4 . . Ballistic Cannon 1 | . . . 4 Peak Build Rating 34 | 6 7 18 34 Average Rating 13 | 4 6 12 24 On Entrance 7 | . 6 7 15 Avg Prop Armor Cover (%) 5 | . . . 5 Naked Turns . | . . . . Heaviest Build 39 | 12 19 28 39 Greatest Support 37 | 20 20 29 37 Greatest Overweight (x) 4 | . 1 2 4 Average Overweight (x) . | . . . . Largest Inventory Capacity 15 | 8 8 8 15 Average Capacity 7 | 7 8 6 7 Most Carried 8 | 5 8 8 5 Average Carried 5 | 2 7 6 4 Final Capacity 8 | 8 8 5 5 Final Carried 8 | 5 8 5 4 Class Distribution -------------------- 63% | Mutant 36% | Scavenger-Mutant Dominant Class ---------------- Mutant | -10/Materials Scavenger-Mutant | -9/Materials Mutant | -8/Materials Resources | -11 -10 -9 -8 ----------- Run | Yrd Mat Mat Mat Matter Collected 1148 | 192 192 384 380 Remotely . | . . . . Salvage Created 2281 | . 264 1277 740 Parts 130 | . 18 73 39 Haulers Intercepted 3 | . . 1 2 Recyclers Shooed . | . . . . Parts Field Recycled . | . . . . Retrieved Matter . | . . . . Parts Self-Destructed . | . . . . Prevented . | . . . . Parts Restored . | . . . . Kills | -11 -10 -9 -8 ------- Run | Yrd Mat Mat Mat Combat Hostiles Destroyed 44 | . 8 22 14 Melee 13 | . . . 13 Cannons 29 | . 7 21 1 AOE 2 | . 1 1 . Classes Destroyed 10 | . 3 7 . Worker 3 | . . 2 1 Builder 2 | . . 1 1 Hauler 3 | . . 1 2 Recycler 3 | . 1 2 . Watcher 5 | . . 3 2 Swarmer 9 | . 6 . 3 Grunt 25 | . 2 14 9 Brawler 1 | . . 1 . Duelist 2 | . . 2 . Sentry 7 | . . 5 2 Best Kill Streak 4 | . 3 4 4 Combat Bots Only 4 | . 3 3 4 Max Kills in Single Turn 2 | . 2 2 1 Gunslinging . | . . . . Exploded 1 | . 1 1 . Melee 1 | . . . 1 Uniques/NPCs Destroyed . | . . . . Combat | -11 -10 -9 -8 -------- Run | Yrd Mat Mat Mat Hostile Shots Fired 383 | . 47 81 255 Missed 98 | . 11 20 67 Hits 285 | . 36 61 188 Melee 4 | . . 4 . Projectile 281 | . 36 57 188 Critical Strikes 7 | . . . 7 Damage Taken 3842 | . 353 936 2553 Core 874 | . 52 258 564 Absorbed by Shields . | . . . . Redirected to Shielding 8 | . . . 8 Regen/Repaired (Parts) 164 | . 80 84 . Core Remaining (%) 71 | 100 79 35 . Volleys Fired 105 | . 14 74 17 Largest 2 | . 2 2 2 Hottest 128 | . 120 128 128 Shots Fired 209 | . 28 148 33 Gun . | . . . . Cannon 209 | . 28 148 33 Launcher . | . . . . Special . | . . . . Kinetic 20 | . . . 20 Thermal 189 | . 28 148 13 Explosive . | . . . . Electromagnetic . | . . . . Robot Hit Streak 13 | . 6 13 8 Robot Miss Streak 7 | . 1 7 7 Penetration Max . | . . . . Secondary Targets . | . . . . Shots Hit Robots 172 | . 16 93 63 Core Hits 78 | . 11 39 28 Critical Kills . | . . . . Critical Parts Destroyed . | . . . . Critical Strikes 3 | . . . 3 Sever 3 | . . . 3 Melee Attacks 50 | . . . 50 Impact . | . . . . Slashing 50 | . . . 50 Piercing . | . . . . Sneak Attacks 3 | . . . 3 Combat Hostiles . | . . . . Follow-up Attacks . | . . . . Damage Inflicted 4443 | . 396 1900 2147 Guns . | . . . . Cannons 2457 | . 300 1728 429 Explosions 253 | . 96 157 . Melee 1706 | . . . 1706 Ramming 27 | . . 15 12 Kinetic 262 | . . . 262 Thermal 2352 | . 300 1885 167 Explosive . | . . . . Electromagnetic 96 | . 96 . . Impact . | . . . . Slashing 1706 | . . . 1706 Piercing . | . . . . Highest Corruption 4 | . 4 . . Average Corruption 3 | . 3 . . Corruption Purged . | . . . . Corruption Blocked . | . . . . Effects 11 | . 11 . . Message Errors 3 | . 3 . . Matter Fused 6 | . 6 . . Data Loss (minor) 2 | . 2 . . Overload Shots . | . . . . Overflow Damage 205 | . . 51 154 Projectiles 24 | . . 24 . Explosions 27 | . . 27 . Melee 154 | . . . 154 Knockbacks 3 | . . . 3 Impact . | . . . . Kinetic 3 | . . . 3 Secondary . | . . . . Self-Inflicted Damage 136 | . 57 79 . Shots 3 | . 2 1 . Rammed . | . . . . Targets Rammed 7 | . . 5 2 Kicked 7 | . . 5 2 Crushed . | . . . . Highest Temperature 485 | . 404 414 485 Average Temperature 144 | . 162 123 245 Received Heat Transfer 1338 | . 24 306 1008 Effects 13 | . 1 6 6 Shutdowns 2 | . 1 1 . Energy Bleed 1 | . . 1 . Interference 2 | . . 2 . Short Circuit 5 | . . 2 3 Damage (major) 3 | . . . 3 Siege Activations . | . . . . Martial Activations . | . . . . Shielding Activations . | . . . . Robots Disrupted . | . . . . Combat Hostiles . | . . . . Robots Corrupted . | . . . . Combat Hostiles . | . . . . Parts Fried . | . . . . Impact Corruptions . | . . . . Robots Melted . | . . . . Combat Hostiles . | . . . . Parts Melted 12 | . 2 8 2 Heat Transferred 4614 | . 629 3652 333 Parts Sabotaged . | . . . . Parts Stolen . | . . . . Parts Stripped . | . . . . Power Chain Reactions 2 | . 2 . . Alert | -11 -10 -9 -8 ------- Run | Yrd Mat Mat Mat Maximum Alert Level . | . . . . Low Security (%) 100 | 100 100 100 100 Level 1 . | . . . . Level 2 . | . . . . Level 3 . | . . . . Level 4 . | . . . . Level 5 . | . . . . High Security . | . . . . Max Security . | . . . . Peak Influence 168 | . 116 168 97 Initial 52 | . . . 52 Average 43 | . 21 74 18 Influence Increases 1345 | . 244 714 387 Destroy 0b10 Robot/C 880 | . 160 440 280 Destroy 0b10 Robot/NC 80 | . 5 45 30 Destroy Leader 206 | . 30 118 58 Successful Hack 17 | . 9 4 4 Disable Machine 75 | . 30 45 . Destroy Structure 42 | . 10 32 . Lose Combat Pursuer 45 | . . 30 15 Influence Decreases 1284 | . 244 589 451 Entered New Map 73 | . . . 73 Time Decay 1081 | . 234 559 288 Lost Part 130 | . 10 30 90 Squads Dispatched 6 | . 1 3 2 Investigation 3 | . 1 1 1 Extermination . | . . . . Reinforcement 3 | . . 2 1 Assault . | . . . . Garrison . | . . . . Intercept . | . . . . Searches Triggered . | . . . . Construction Impeded 1 | . . 1 . Haulers Reinforced . | . . . . Active Scanning Responses . | . . . . Cargo Convoy Interrupts . | . . . . Stealth | -11 -10 -9 -8 --------- Run | Yrd Mat Mat Mat Distress Signals 6 | . 1 2 3 Communications Jammed . | . . . . Distress Signals . | . . . . Times Spotted 74 | . 8 36 30 Peak Tracking Total 6 | . 3 5 6 Tactical Retreats 2 | . . 1 1 Traps | -11 -10 -9 -8 ------- Run | Yrd Mat Mat Mat Traps Triggered 5 | . 3 1 1 Indirectly . | . . . . Trap Hack Attempts . | . . . . Triggered . | . . . . Disarmed . | . . . . Reprogrammed . | . . . . Reused . | . . . . Traps Extracted . | . . . . Installed . | . . . . Triggered . | . . . . Machines | -11 -10 -9 -8 ---------- Run | Yrd Mat Mat Mat Machines Disabled 5 | . 2 3 . Max in Single Turn 2 | . 2 1 . Machines Repaired . | . . . . Machines Dismantled . | . . . . Machines Sabotaged . | . . . . Overloaded Fab Kills . | . . . . Hacking | -11 -10 -9 -8 --------- Run | Yrd Mat Mat Mat Machines Accessed 13 | . 7 3 3 Terminals 10 | . 5 2 3 Fabricators . | . . . . Repair Stations 2 | . 1 1 . Recycling Units 1 | . 1 . . Scanalyzers . | . . . . Garrison Access . | . . . . Total Hacks 29 | . 16 10 3 Successful 22 | . 10 9 3 Failed 7 | . 6 1 . Catastrophic 1 | . 1 . . Database Lockouts . | . . . . Manual 7 | . 3 2 2 Terminals 17 | . 11 3 3 Fabricators . | . . . . Repair Stations 9 | . 2 7 . Recycling Units 3 | . 3 . . Scanalyzers . | . . . . Garrison Access . | . . . . Terminal Hacks 6 | . 3 2 1 Record 1 | . 1 . . Branch Access Points 1 | . 1 . . Alert Level 2 | . 1 1 . Locate Traps 1 | . . . 1 Zone Layout 1 | . . 1 . Fabricator Hacks . | . . . . Repair Station Hacks 8 | . 2 6 . Scan Component 5 | . 1 4 . Repair 3 | . 1 2 . Recycling Unit Hacks 3 | . 3 . . Recycle Component 1 | . 1 . . Process 1 | . 1 . . Report Inventory 1 | . 1 . . Scanalyzer . | . . . . Garrison Access Hacks . | . . . . Unauthorized Hacks 5 | . 2 1 2 Terminals 5 | . 2 1 2 Track 5 | . 2 1 2 Fabricators . | . . . . Repair Stations . | . . . . Recycling Units . | . . . . Scanalyzers . | . . . . Garrison Access . | . . . . Data Cores Recovered . | . . . . Used . | . . . . Hacking Detections 5 | . 4 1 . Full Trace Events 2 | . 1 1 . Feedback Events . | . . . . Feedback Blocked . | . . . . Robot Schematics Acquired . | . . . . Robots Built . | . . . . Authchips . | . . . . Time . | . . . . Total Robot Build Rating . | . . . . Part Schematics Acquired . | . . . . Parts Built . | . . . . Authchips . | . . . . Time . | . . . . Total Part Build Rating . | . . . . Part Studies Acquired . | . . . . Parts Repaired 3 | . 1 2 . Time 78 | . 26 52 . Parts Recycled 1 | . 1 . . Recycled Matter 35 | . 35 . . Retrieved Matter . | . . . . Retrieved Components . | . . . . Parts Scanalyzed . | . . . . Part Schematics Acquired . | . . . . Parts Damaged . | . . . . Bothacking | -11 -10 -9 -8 ------------ Run | Yrd Mat Mat Mat Used RIF Installer . | . . . . Robots Hacked . | . . . . Non-combat . | . . . . Combat . | . . . . Robot Hacks Applied . | . . . . Relay Couplers Released . | . . . . Fabnet Peak Effective % . | . . . . Robots Rewired . | . . . . Allies Hacked . | . . . . Hacks Repelled . | . . . . Allies | -11 -10 -9 -8 -------- Run | Yrd Mat Mat Mat Total Allies . | . . . . Largest Group . | . . . . Highest-Rated Group . | . . . . Highest-Rated Ally . | . . . . Total Orders . | . . . . Ally Attacks . | . . . . Total Damage . | . . . . Kills . | . . . . Allies Corrupted . | . . . . Allies Melted . | . . . . Intel | -11 -10 -9 -8 ------- Run | Yrd Mat Mat Mat Active Infowar (turns) 2029 | . . 679 1350 Optics 1350 | . . . 1350 Sensors 679 | . . 679 . Robot Analysis Total . | . . . . Derelict Logs Recovered . | . . . . Drone Launches . | . . . . Drone Recoveries . | . . . . Exploration | -11 -10 -9 -8 ------------- Run | Yrd Mat Mat Mat Turns Passed 5278 | 98 1449 2363 1368 Spaces Moved 3200 | 71 1008 1367 754 Core 15 | 3 . 4 8 Treads . | . . . . Legs 3180 | 68 1008 1363 741 Wheels 5 | . . . 5 Hover . | . . . . Flight . | . . . . Fastest Speed 50 | 50 120 120 100 Average Speed 126 | 117 120 123 142 Slowest Speed 260 | 120 190 190 260 Overloaded Moves . | . . . . Propulsion Burnouts . | . . . . Robots Hopped . | . . . . Potential Cave-ins . | . . . . Cave-ins Triggered . | . . . . Exploration Rate (%) 49 | 4 92 49 51 Regions Visited 3 Branch Regions . Pre-discovered Areas . | . . . . Known Exits Taken . | . . . . Unknown Exits Taken 3 | 1 1 1 . Scrap Searched . | . . . . Spaces Dug . | . . . . Terrain Destroyed 45 | . 9 36 . Melee . | . . . . Projectile . | . . . . AOE 45 | . 9 36 . Terrain Rammed . | . . . . Walls Destroyed . | . . . . Machines Disabled . | . . . . Actions | -11 -10 -9 -8 --------- Run | Yrd Mat Mat Mat Total 4122 | 83 1218 1892 929 Wait 575 | . 164 368 43 Move 3197 | 70 1007 1366 754 Hop . | . . . . Pick Up 31 | 5 11 11 4 Fast Attach 62 | 6 7 23 26 Attach 9 | 1 1 3 4 Detach 17 | 1 1 7 8 Swap 16 | . 2 11 3 Drop 53 | . 11 24 18 Fire 105 | . 14 74 17 Melee 50 | . . . 50 Ram . | . . . . Kick 7 | . . 5 2 Crush . | . . . . Escape Stasis . | . . . . Rewire . | . . . . Trap . | . . . . Miscellaneous . | . . . . Route ------- -11/Scrapyard -10/Materials (discovered 4 exits: *Mat x2 / *Min x2) -9/Materials -8/Materials (discovered 1 exit: [*Fac]) History --------- Turn | Location | Event 11 | -11/Scrapyard | Discovered new exit (range 16) 99 | -11/Scrapyard | Entered Materials 100 | -10/Materials | Met a group of wandering Federalists 294 | -10/Materials | Discovered new exit (range 12) 311 | -10/Materials | Build established: Mutant 448 | -10/Materials | Discovered new exit (range 9) 491 | -10/Materials | Identified exit to Mines 922 | -10/Materials | Discovered new exit (range 13) 1487 | -10/Materials | Repaired Lgt. Armor Plating 1548 | -10/Materials | Entered another Materials area 1548 | -9/Materials | Evolved 2 slots: Utility x2 2012 | -9/Materials | Repaired Sensor Array 2039 | -9/Materials | Repaired Beam Cannon 2367 | -9/Materials | Discovered new exit (range 15) 2617 | -9/Materials | Build established: Scavenger-Mutant 2634 | -9/Materials | Core integrity fell below 50% 3911 | -9/Materials | Entered another Materials area 3911 | -8/Materials | Evolved 2 slots: Propulsion x1, Utility x1 4397 | -8/Materials | Lost 6 parts (2n3u1w) 4510 | -8/Materials | Core integrity fell below 50% 4629 | -8/Materials | Lost 4 parts (1p2n1w) 4849 | -8/Materials | Build established: Mutant 5174 | -8/Materials | Core integrity fell below 20% 5241 | -8/Materials | Lost 3 parts (1n1u1w) 5259 | -8/Materials | Discovered new exit (range 20) 5279 | -8/Materials | Destroyed by Y-45 Defender with Heavy Assault Rifle Last Messages --------------- 05206_ R-06 Scavenger collects Wheel. 05207_ K-01 Serf collects debris. 05208_ R-06 Scavenger inserts Lgt. Nuclear Core into recycling unit. 05208_ G-47 Trooper destroyed. 05210_ K-01 Serf collects debris. 05210_ Greatsword destroyed. 05210_ R-06 Scavenger collects Imp. Heat Sink. 05211_ R-06 Scavenger inserts Beam Rifle into recycling unit. 05211_ Kicked W-25 Informer. 05212_ Recycling unit begins recycling process. 05213_ K-01 Serf collects debris. 05214_ R-06 Scavenger collects Imp. Heat Sink. 05217_ Acquired Aluminum Leg. 05217_ R-06 Scavenger collects Particle Gun. 05221_ R-06 Scavenger collects Imp. Medium Laser. 05259_ EXIT=FOUND 05261_ Imp. Light Armor Plating destroyed. Map ----- +----------------------------------------------------+ | ???????# / #????# % =# | | ???????# # #????# # | | ???????# # """"" #????# k" # | | ???????# # """"""""" #????# # | | ???????# # """ """ #????# # | | ???????# #############????### ### | | ???????# #??????????????????# #?# | | ???????# #??????????????????# #?# | | ???????# #??????????????????# #?# | | ???????# Y#??????????????????#r#?# | | ???????# u #??????????????????# #?? | | ???????# #??????????????????# #?? | | ???????# g#??????????????????# #?? | | ???????# #??????????????????# #?? | | ???????# #??????????????????# #?? | | ???????# #?????????#####????# #?? | | ???????# #?????????#[[ #????# #?? | | ??????## ##????????#[[ #????# #?? | | ??????# #????????#== ###### ### | | ??????# #????????#= ! k | | ??????+ Y +????????#! ######+### | | ??????# #????????#!! #??# | | ??????# #????????#####??# | | ??????## ##???????????????# """ | | ???????# #????????????????# """ | | ???????# @#????????????????# """ | | ???????# #????????????????# | | ???????# #????????????????####### | | ???????# < #??????????????????????? | | ???????# #??????????????????????? | | ???????#####??????????????????????? | | ??????????????????????????????????? | | ??????????????????????????????????? | | ??????????????????????????????????? | | ??????????????????????????????????? | | ??????????????????????????????????? | | ??????????????????????????????????? | | ??????????????????????????????????? | | ??????????????????????????????????? | | ??????????????????????????????????? | | | | | | | | | | | | | | | | | | | | | +----------------------------------------------------+ Best States ------------- Heat Dissipation 51 Energy Generation 14 Energy Capacity 280 Matter Stores 300 Matter Capacity 300 Sight Range 20 Robot Scan Range 14 Terrain Scan Density 10 Additional Mass Support 9 Base Temperature (-) 100 Armor Coverage 450 Power Shielding 66 Propulsion Shielding 33 Evasion (%) 55 Core Analysis 6 Item Schematics ----------------- None Robot Schematics ------------------ None Fabricated ------------ Nothing Repaired ---------- Lgt. Armor Plating | 11% | -10/Materials Sensor Array | 45% | -9/Materials Beam Cannon | 27% | -9/Materials Studied --------- None Alien Tech Used ----------------- None Achievements -------------- DIY Cooler More Dakka Please Challenges ------------ None Game ------ Seed BlanketRocketLink Manual? 0 Play Time 01:00:07 Cumulative 8.5 hours Start 2026.01.02 @ 04:05:03 End 2026.01.02 @ 05:05:53 Sessions 1 Manual Loads 0 Difficulty Rogue Special Mode None Game No. 9 Rogue 9 Adventurer 0 Explorer 0 Win Type - Total 0 Types 0/0/0/0/0/0/0/0/0/0 Lore% 9 Gallery% 9 Achievement% 11 Wizard Run 0 Options --------- Layout 1 ASCII 0 Keyboard 0 Movement Arrows Keybinds 0 Fullscreen 2 Font 24/Crisp Map View 50x35 Zoom Use 0% Tactical HUD 1 Map Filters NONE Filters NONE Steam 1 RUN: 7ea0e502-de2d-4d9c-b329-1057d9ade14d